{"text_format":"3","workbook":"xlsx","n_sheets":1,"sheets":["Plan1"],"read":"whole","date_system":"1900"}

{"sheet":"Plan1","index":0,"n_rows":95,"n_cols":10,"rows_kept":95,"merged":[[0,0,1,6],[0,8,1,9]]}
["RECEITAS LIGADAS AO CORONAVIRUS",{"$nulls":7},"RECEITAS POR FONTE"]
[]
["Data","Descrição","Fonte Grupo","Aplicação Grupo","Cód. Aplicação","Valor","ACUMULADO",null,"FONTE","TOTAL"]
["2020-03-31","ENFRENTAMENTO CORONAVIRUS - R. FEDERAL","05 - TRANSFERÊNCIAS E CONVÊNIOS FEDERAIS-VINCULADOS","312 - RECURSOS PARA COMBATE AO CORONAVIRUS","001 - ENFRENT. CORONAVIRUS - R. FEDERAL - SAUD",{"v":102894,"d":"R$ 102,894.00"},{"$f":"F4","v":{"v":102894,"d":"R$ 102,894.00"}},null,"01 - TESOURO",{"$f":"SUMIF(Tabela1[Fonte Grupo],I4,Tabela1[Valor])","v":{"v":89200.90999999996,"d":"R$ 89,200.91"}}]
["2020-03-31","ENFRENTAMENTO CORONAVIRUS - R. ESTADUAL","02 - TRANSFERÊNCIAS E CONVÊNIOS ESTADUAIS-VINCULADOS","312 - RECURSOS PARA COMBATE AO CORONAVIRUS","002 - ENFRENT. CORONAVIRUS - R. ESTADUAL - SAU",{"v":123472.8,"d":"R$ 123,472.80"},{"$f":"G4+F5","v":{"v":226366.8,"d":"R$ 226,366.80"}},null,"02 - TRANSFERÊNCIAS E CONVÊNIOS ESTADUAIS-VINCULADOS",{"$f":"SUMIF(Tabela1[Fonte Grupo],I5,Tabela1[Valor])","v":{"v":516288,"d":"R$ 516,288.00"}}]
["2020-03-31","ENFRENTAMENTO CORONAVIRUS - R. ESTADUAL","02 - TRANSFERÊNCIAS E CONVÊNIOS ESTADUAIS-VINCULADOS","312 - RECURSOS PARA COMBATE AO CORONAVIRUS","002 - ENFRENT. CORONAVIRUS - R. ESTADUAL - SAU",{"v":82315.2,"d":"R$ 82,315.20"},{"$f":"G5+F6","v":{"v":308682,"d":"R$ 308,682.00"}},null,"05 - TRANSFERÊNCIAS E CONVÊNIOS FEDERAIS-VINCULADOS",{"$f":"SUMIF(Tabela1[Fonte Grupo],I6,Tabela1[Valor])","v":{"v":3926446.599999999,"d":"R$ 3,926,446.60"}}]
["2020-04-13","ENFRENTAMENTO CORONAVIRUS - R. FEDERAL","05 - TRANSFERÊNCIAS E CONVÊNIOS FEDERAIS-VINCULADOS","312 - RECURSOS PARA COMBATE AO CORONAVIRUS","001 - ENFRENT. CORONAVIRUS - R. FEDERAL - SAUD",{"v":198610.02,"d":"R$ 198,610.02"},{"v":507292.02,"d":"R$ 507,292.02"},null,"08 - EMENDAS PARLAMENTARES INDIVIDUAIS",{"$f":"SUMIF(Tabela1[Fonte Grupo],I7,Tabela1[Valor])","v":0}]
["2020-04-13","ENFRENTAMENTO CORONAVIRUS - R. ESTADUAL","02 - TRANSFERÊNCIAS E CONVÊNIOS ESTADUAIS-VINCULADOS","312 - RECURSOS PARA COMBATE AO CORONAVIRUS","002 - ENFRENT. CORONAVIRUS - R. ESTADUAL - SAU",{"v":200000,"d":"R$ 200,000.00"},{"v":707292.02,"d":"R$ 707,292.02"},null,"TOTAL",{"$f":"SUM(J4:J7)","v":{"v":4531935.509999999,"d":"R$ 4,531,935.51"}}]
["2020-04-28","ENFRENTAMENTO CORONAVIRUS - R. FEDERAL","05 - TRANSFERÊNCIAS E CONVÊNIOS FEDERAIS-VINCULADOS","312 - RECURSOS PARA COMBATE AO CORONAVIRUS","001 - ENFRENT. CORONAVIRUS - R. FEDERAL - SAUD",{"v":34264.31,"d":"R$ 34,264.31"},{"v":741556.3300000001,"d":"R$ 741,556.33"}]
["2020-05-04","INCREMENTO TEMPORÁRIO CUSTEIO - P.728 - EMENDA PAR. - R. FED","08 - EMENDAS PARLAMENTARES INDIVIDUAIS","312 - RECURSOS PARA COMBATE AO CORONAVIRUS","009 - INCREM.CUST.-P.728 - EMENDA PAR.- R.FED",{"v":150000,"d":"R$ 150,000.00"},{"v":891556.3300000001,"d":"R$ 891,556.33"}]
["2020-05-12","AÇÕES COVID SUAS - PORT. 369 - EPI - R.FED","05 - TRANSFERÊNCIAS E CONVÊNIOS FEDERAIS-VINCULADOS","312 - RECURSOS PARA COMBATE AO CORONAVIRUS","005 - AÇÕES COVID SUAS-EPI- PORT. 369 - R.FED",{"v":8400,"d":"R$ 8,400.00"},{"v":899956.3300000001,"d":"R$ 899,956.33"}]
["2020-05-12","AÇÕES COVID SUAS - PORT. 369 - ALIMENTOS - R.FED","05 - TRANSFERÊNCIAS E CONVÊNIOS FEDERAIS-VINCULADOS","312 - RECURSOS PARA COMBATE AO CORONAVIRUS","006 - AÇÕES COVID SUAS-ALIM.-PORT. 369 - R.FED",{"v":61410,"d":"R$ 61,410.00"},{"v":961366.3300000001,"d":"R$ 961,366.33"}]
["2020-05-12","AÇÕES COVID SUAS - PORT. 369 - ACOLHIMENTO - R.FED","05 - TRANSFERÊNCIAS E CONVÊNIOS FEDERAIS-VINCULADOS","312 - RECURSOS PARA COMBATE AO CORONAVIRUS","007 - AÇÕES COVID SUAS-ACOL.-PORT. 369 - R.FED",{"v":121200,"d":"R$ 121,200.00"},{"v":1082566.33,"d":"R$ 1,082,566.33"}]
["2020-05-20","INCREM. TEMP. BL. PROT. S. ESPEC. COVID","05 - TRANSFERÊNCIAS E CONVÊNIOS FEDERAIS-VINCULADOS","312 - RECURSOS PARA COMBATE AO CORONAVIRUS","011 - INCREM. TEMP. BL. PROT. S. ESPEC. COVID",{"v":57360,"d":"R$ 57,360.00"},{"v":1139926.33,"d":"R$ 1,139,926.33"}]
["2020-05-20","INCREM. TEMP. BL. PROT. S. BASICA. COVID","05 - TRANSFERÊNCIAS E CONVÊNIOS FEDERAIS-VINCULADOS","312 - RECURSOS PARA COMBATE AO CORONAVIRUS","012 - INCREM. TEMP. BL. PROT. S. BASICA. COVID",{"v":44175,"d":"R$ 44,175.00"},{"v":1184101.33,"d":"R$ 1,184,101.33"}]
["2020-05-29","REM. DEP. BANC. - AÇÕES COVID SUAS EPI - P. 369","05 - TRANSFERÊNCIAS E CONVÊNIOS FEDERAIS-VINCULADOS","312 - RECURSOS PARA COMBATE AO CORONAVIRUS","005 - AÇÕES COVID SUAS-EPI- PORT. 369 - R.FED",{"v":2.59,"d":"R$ 2.59"},{"v":1184103.9200000002,"d":"R$ 1,184,103.92"}]
["2020-05-29","REM. DEP. BANC. - AÇÕES COVID SUAS ALIMENTOS - P. 369","05 - TRANSFERÊNCIAS E CONVÊNIOS FEDERAIS-VINCULADOS","312 - RECURSOS PARA COMBATE AO CORONAVIRUS","006 - AÇÕES COVID SUAS-ALIM.-PORT. 369 - R.FED",{"v":18.97,"d":"R$ 18.97"},{"v":1184122.8900000001,"d":"R$ 1,184,122.89"}]
["2020-05-29","REM. DEP. BANC. - AÇÕES COVID SUAS ACOLHIMENTO - P. 369","05 - TRANSFERÊNCIAS E CONVÊNIOS FEDERAIS-VINCULADOS","312 - RECURSOS PARA COMBATE AO CORONAVIRUS","007 - AÇÕES COVID SUAS-ACOL.-PORT. 369 - R.FED",{"v":37.43,"d":"R$ 37.43"},{"v":1184160.32,"d":"R$ 1,184,160.32"}]
["2020-05-29","Receita Desc. Emp. 5015/1/OR","01 - TESOURO","312 - RECURSOS PARA COMBATE AO CORONAVIRUS","008 - RED. SAL. CARGOS COMISSÃO - DEC. 1242/20",{"v":918.72,"d":"R$ 918.72"},{"v":1185079.04,"d":"R$ 1,185,079.04"}]
["2020-05-29","Receita Desc. Emp. 5024/1/OR","01 - TESOURO","312 - RECURSOS PARA COMBATE AO CORONAVIRUS","008 - RED. SAL. CARGOS COMISSÃO - DEC. 1242/20",{"v":918.72,"d":"R$ 918.72"},{"v":1185997.76,"d":"R$ 1,185,997.76"}]
["2020-05-29","Receita Desc. Emp. 4985/1/OR","01 - TESOURO","312 - RECURSOS PARA COMBATE AO CORONAVIRUS","008 - RED. SAL. CARGOS COMISSÃO - DEC. 1242/20",{"v":37873.35,"d":"R$ 37,873.35"},{"v":1223871.11,"d":"R$ 1,223,871.11"}]
["2020-06-09","FPM - AUX. FINANCEIRO - LEI 173/20 - COVID","05 - TRANSFERÊNCIAS E CONVÊNIOS FEDERAIS-VINCULADOS","312 - RECURSOS PARA COMBATE AO CORONAVIRUS","015 - AUX. FINANCEIRO - LEI 173/20 - COVID",{"v":187880.32,"d":"R$ 187,880.32"},{"v":1411751.4300000002,"d":"R$ 1,411,751.43"}]
["2020-06-12","Receita Desc. Emp. 5542/1/OR","01 - TESOURO","312 - RECURSOS PARA COMBATE AO CORONAVIRUS","008 - RED. SAL. CARGOS COMISSÃO - DEC. 1242/20",{"v":108.58,"d":"R$ 108.58"},{"v":1411860.0100000002,"d":"R$ 1,411,860.01"}]
["2020-06-12","Receita Desc. Emp. 5495/1/OR","01 - TESOURO","312 - RECURSOS PARA COMBATE AO CORONAVIRUS","008 - RED. SAL. CARGOS COMISSÃO - DEC. 1242/20",{"v":179.57,"d":"R$ 179.57"},{"v":1412039.5800000003,"d":"R$ 1,412,039.58"}]
["2020-06-22","ACOL. IDOSOS BL. P.S.E. ALTA C. - R. EST - Resolução SEDS nº 10 de 08/05/2020.","02 - TRANSFERÊNCIAS E CONVÊNIOS ESTADUAIS-VINCULADOS","312 - RECURSOS PARA COMBATE AO CORONAVIRUS","013 - ACOL. IDOSOS BL. P.S.E. ALTA C. - R. EST",{"v":10500,"d":"R$ 10,500.00"},{"v":1422539.5800000003,"d":"R$ 1,422,539.58"}]
["2020-06-30","REM. DEP. BANC. - AÇÕES COVID SUAS EPI - P. 369","05 - TRANSFERÊNCIAS E CONVÊNIOS FEDERAIS-VINCULADOS","312 - RECURSOS PARA COMBATE AO CORONAVIRUS","005 - AÇÕES COVID SUAS-EPI- PORT. 369 - R.FED",{"v":3.71,"d":"R$ 3.71"},{"$f":"G25+F26","v":{"v":1422543.2900000003,"d":"R$ 1,422,543.29"}}]
["2020-06-30","AÇÕES COVID SUAS-ALIM.-PORT. 369 - R.FED","05 - TRANSFERÊNCIAS E CONVÊNIOS FEDERAIS-VINCULADOS","312 - RECURSOS PARA COMBATE AO CORONAVIRUS","006 - AÇÕES COVID SUAS-ALIM.-PORT. 369 - R.FED",{"v":61410,"d":"R$ 61,410.00"},{"v":1483953.2900000003,"d":"R$ 1,483,953.29"}]
["2020-06-30","REM. DEP. BANC. - AÇÕES COVID SUAS ALIMENTOS - P. 369","05 - TRANSFERÊNCIAS E CONVÊNIOS FEDERAIS-VINCULADOS","312 - RECURSOS PARA COMBATE AO CORONAVIRUS","006 - AÇÕES COVID SUAS-ALIM.-PORT. 369 - R.FED",{"v":30.64,"d":"R$ 30.64"},{"v":1483983.9300000002,"d":"R$ 1,483,983.93"}]
["2020-06-30","AÇÕES COVID SUAS-ACOL.-PORT. 369 - R.FED","05 - TRANSFERÊNCIAS E CONVÊNIOS FEDERAIS-VINCULADOS","312 - RECURSOS PARA COMBATE AO CORONAVIRUS","007 - AÇÕES COVID SUAS-ACOL.-PORT. 369 - R.FED",{"v":121200,"d":"R$ 121,200.00"},{"v":1605183.9300000002,"d":"R$ 1,605,183.93"}]
["2020-06-30","REM. DEP. BANC. - AÇÕES COVID SUAS ACOLHIMENTO - P. 369","05 - TRANSFERÊNCIAS E CONVÊNIOS FEDERAIS-VINCULADOS","312 - RECURSOS PARA COMBATE AO CORONAVIRUS","007 - AÇÕES COVID SUAS-ACOL.-PORT. 369 - R.FED",{"v":60.49,"d":"R$ 60.49"},{"v":1605244.4200000002,"d":"R$ 1,605,244.42"}]
["2020-06-30","INCREM. TEMP. BL. PROT. S. ESPEC. COVID","05 - TRANSFERÊNCIAS E CONVÊNIOS FEDERAIS-VINCULADOS","312 - RECURSOS PARA COMBATE AO CORONAVIRUS","011 - INCREM. TEMP. BL. PROT. S. ESPEC. COVID",{"v":57360,"d":"R$ 57,360.00"},{"v":1662604.4200000002,"d":"R$ 1,662,604.42"}]
["2020-06-30","INCREM. TEMP. BL. PROT. S. BASICA. COVID","05 - TRANSFERÊNCIAS E CONVÊNIOS FEDERAIS-VINCULADOS","312 - RECURSOS PARA COMBATE AO CORONAVIRUS","012 - INCREM. TEMP. BL. PROT. S. BASICA. COVID",{"v":44175,"d":"R$ 44,175.00"},{"v":1706779.4200000002,"d":"R$ 1,706,779.42"}]
["2020-07-01","ENFRENTAMENTO CORONAVIRUS - R. ESTADUAL","02 - TRANSFERÊNCIAS E CONVÊNIOS ESTADUAIS-VINCULADOS","312 - RECURSOS PARA COMBATE AO CORONAVIRUS","002 - ENFRENT. CORONAVIRUS - R. ESTADUAL - SAU",{"v":100000,"d":"R$ 100,000.00"},{"$f":"G32+F33","v":{"v":1806779.4200000002,"d":"R$ 1,806,779.42"}}]
["2020-07-08","PR.25000070682202009-ATENÇÃO BÁSICA- ENFRENT.COVID-R.FED","05 - TRANSFERÊNCIAS E CONVÊNIOS FEDERAIS-VINCULADOS","312 - RECURSOS PARA COMBATE AO CORONAVIRUS","017 - PR.25000070682202009-ENFRENT.COVID-R.FED",{"v":50000,"d":"R$ 50,000.00"},{"$f":"G33+F34","v":{"v":1856779.4200000002,"d":"R$ 1,856,779.42"}}]
["2020-07-10","Receita Desc. Emp. 6525/1/OR","01 - TESOURO","312 - RECURSOS PARA COMBATE AO CORONAVIRUS","008 - RED. SAL. CARGOS COMISSÃO - DEC. 1242/20",{"v":66.81,"d":"R$ 66.81"},{"$f":"G34+F35","v":{"v":1856846.2300000002,"d":"R$ 1,856,846.23"}}]
["2020-07-10","Receita Desc. Emp. 6526/1/OR","01 - TESOURO","312 - RECURSOS PARA COMBATE AO CORONAVIRUS","008 - RED. SAL. CARGOS COMISSÃO - DEC. 1242/20",{"v":180.96,"d":"R$ 180.96"},{"v":1857027.1900000002,"d":"R$ 1,857,027.19"}]
["2020-07-13","FPM - AUX. FINANCEIRO - LEI 173/20 - COVID","05 - TRANSFERÊNCIAS E CONVÊNIOS FEDERAIS-VINCULADOS","312 - RECURSOS PARA COMBATE AO CORONAVIRUS","015 - AUX. FINANCEIRO - LEI 173/20 - COVID",{"v":187880.32,"d":"R$ 187,880.32"},{"v":2044907.5100000002,"d":"R$ 2,044,907.51"}]
["2020-07-14","Receita Desc. Emp. 6552/1/OR","01 - TESOURO","312 - RECURSOS PARA COMBATE AO CORONAVIRUS","008 - RED. SAL. CARGOS COMISSÃO - DEC. 1242/20",{"v":1049.57,"d":"R$ 1,049.57"},{"v":2045957.0800000003,"d":"R$ 2,045,957.08"}]
["2020-07-14","Receita Desc. Emp. 6553/1/OR","01 - TESOURO","312 - RECURSOS PARA COMBATE AO CORONAVIRUS","008 - RED. SAL. CARGOS COMISSÃO - DEC. 1242/20",{"v":625.7,"d":"R$ 625.70"},{"v":2046582.7800000003,"d":"R$ 2,046,582.78"}]
["2020-07-14","MULTA FISCALIZAÇÃO COMÉRCIO - DECRETO 1261/20 - PRINCIPAL","01 - TESOURO","312 - RECURSOS PARA COMBATE AO CORONAVIRUS","014 - MULTA FISCALIZ. COMÉRCIO - DEC. 1261/20",{"v":1104.4,"d":"R$ 1,104.40"},{"v":2047687.1800000002,"d":"R$ 2,047,687.18"}]
["2020-07-14","MULTA FISCALIZAÇÃO COMÉRCIO - DECRETO 1261/20 - PRINCIPAL","01 - TESOURO","312 - RECURSOS PARA COMBATE AO CORONAVIRUS","014 - MULTA FISCALIZ. COMÉRCIO - DEC. 1261/20",{"v":552.2,"d":"R$ 552.20"},{"v":2048239.3800000001,"d":"R$ 2,048,239.38"}]
["2020-07-15","MULTA FISCALIZAÇÃO COMÉRCIO - DECRETO 1261/20 - PRINCIPAL","01 - TESOURO","312 - RECURSOS PARA COMBATE AO CORONAVIRUS","014 - MULTA FISCALIZ. COMÉRCIO - DEC. 1261/20",{"v":552.2,"d":"R$ 552.20"},{"v":2048791.58,"d":"R$ 2,048,791.58"}]
["2020-07-15","MULTA FISCALIZAÇÃO COMÉRCIO - DECRETO 1261/20 - PRINCIPAL","01 - TESOURO","312 - RECURSOS PARA COMBATE AO CORONAVIRUS","014 - MULTA FISCALIZ. COMÉRCIO - DEC. 1261/20",{"v":552.2,"d":"R$ 552.20"},{"v":2049343.78,"d":"R$ 2,049,343.78"}]
["2020-07-15","ENFRENTAMENTO CORONAVIRUS - R. FEDERAL","05 - TRANSFERÊNCIAS E CONVÊNIOS FEDERAIS-VINCULADOS","312 - RECURSOS PARA COMBATE AO CORONAVIRUS","001 - ENFRENT. CORONAVIRUS - R. FEDERAL - SAUD",{"v":450000,"d":"R$ 450,000.00"},{"v":2499343.7800000003,"d":"R$ 2,499,343.78"}]
["2020-07-22","MULTA FISCALIZAÇÃO COMÉRCIO - DECRETO 1261/20 - PRINCIPAL","01 - TESOURO","312 - RECURSOS PARA COMBATE AO CORONAVIRUS","014 - MULTA FISCALIZ. COMÉRCIO - DEC. 1261/20",{"v":541.38,"d":"R$ 541.38"},{"v":2499885.16,"d":"R$ 2,499,885.16"}]
["2020-07-22","MULTA FISCALIZAÇÃO COMÉRCIO - DECRETO 1261/20 - PRINCIPAL","01 - TESOURO","312 - RECURSOS PARA COMBATE AO CORONAVIRUS","014 - MULTA FISCALIZ. COMÉRCIO - DEC. 1261/20",{"v":541.38,"d":"R$ 541.38"},{"v":2500426.54,"d":"R$ 2,500,426.54"}]
["2020-07-30","MULTA FISCALIZAÇÃO COMÉRCIO - DECRETO 1261/20 - PRINCIPAL","01 - TESOURO","312 - RECURSOS PARA COMBATE AO CORONAVIRUS","014 - MULTA FISCALIZ. COMÉRCIO - DEC. 1261/20",{"v":1656.6,"d":"R$ 1,656.60"},{"$f":"G46+F47","v":{"v":2502083.14,"d":"R$ 2,502,083.14"}}]
["2020-07-31","Receita Desc. Emp. 7311/1/OR","01 - TESOURO","312 - RECURSOS PARA COMBATE AO CORONAVIRUS","008 - RED. SAL. CARGOS COMISSÃO - DEC. 1242/20",{"v":33789.22,"d":"R$ 33,789.22"},{"$f":"G47+F48","v":{"v":2535872.3600000003,"d":"R$ 2,535,872.36"}}]
["2020-07-31","REM. DEP. BANC. - AÇÕES COVID SUAS EPI - P. 369","05 - TRANSFERÊNCIAS E CONVÊNIOS FEDERAIS-VINCULADOS","312 - RECURSOS PARA COMBATE AO CORONAVIRUS","005 - AÇÕES COVID SUAS-EPI- PORT. 369 - R.FED",{"v":2.75,"d":"R$ 2.75"},{"v":2535875.1100000003,"d":"R$ 2,535,875.11"}]
["2020-07-31","REM. DEP. BANC. - AÇÕES COVID SUAS ALIMENTOS - P. 369","05 - TRANSFERÊNCIAS E CONVÊNIOS FEDERAIS-VINCULADOS","312 - RECURSOS PARA COMBATE AO CORONAVIRUS","006 - AÇÕES COVID SUAS-ALIM.-PORT. 369 - R.FED",{"v":40.22,"d":"R$ 40.22"},{"v":2535915.3300000005,"d":"R$ 2,535,915.33"}]
["2020-07-31","REM. DEP. BANC. - AÇÕES COVID SUAS ACOLHIMENTO - P. 369","05 - TRANSFERÊNCIAS E CONVÊNIOS FEDERAIS-VINCULADOS","312 - RECURSOS PARA COMBATE AO CORONAVIRUS","007 - AÇÕES COVID SUAS-ACOL.-PORT. 369 - R.FED",{"v":79.37,"d":"R$ 79.37"},{"v":2535994.7000000007,"d":"R$ 2,535,994.70"}]
["2020-07-31","Receita Desc. Emp. 7342/1/OR","01 - TESOURO","312 - RECURSOS PARA COMBATE AO CORONAVIRUS","008 - RED. SAL. CARGOS COMISSÃO - DEC. 1242/20",{"v":918.72,"d":"R$ 918.72"},{"v":2536913.420000001,"d":"R$ 2,536,913.42"}]
["2020-07-31","Receita Desc. Emp. 7353/1/OR","01 - TESOURO","312 - RECURSOS PARA COMBATE AO CORONAVIRUS","008 - RED. SAL. CARGOS COMISSÃO - DEC. 1242/20",{"v":918.72,"d":"R$ 918.72"},{"v":2537832.140000001,"d":"R$ 2,537,832.14"}]
["2020-07-31","ENFRENTAMENTO CORONAVIRUS - R. ESTADUAL - Estorno de lçto. para correção de ficha. Alterado para ficha nº 451.","02 - TRANSFERÊNCIAS E CONVÊNIOS ESTADUAIS-VINCULADOS","312 - RECURSOS PARA COMBATE AO CORONAVIRUS","002 - ENFRENT. CORONAVIRUS - R. ESTADUAL - SAU",{"v":-200000,"d":"-R$ 200,000.00"},{"v":2337832.140000001,"d":"R$ 2,337,832.14"}]
["2020-07-31","REM. DEP. BANC. - AÇÕES COVID SUAS EPI - P. 369","05 - TRANSFERÊNCIAS E CONVÊNIOS FEDERAIS-VINCULADOS","312 - RECURSOS PARA COMBATE AO CORONAVIRUS","005 - AÇÕES COVID SUAS-EPI- PORT. 369 - R.FED",0,{"v":2337832.140000001,"d":"R$ 2,337,832.14"}]
["2020-07-31","ENFRENT. COVID - R. EST. SAUDE - INVEST - AQUISIÇÃO VEÍCULO - Correção de ficha. Alterado da ficha nº 409.","02 - TRANSFERÊNCIAS E CONVÊNIOS ESTADUAIS-VINCULADOS","312 - RECURSOS PARA COMBATE AO CORONAVIRUS","016 - ENFRENT. COVID - R. EST. SAUDE - INVEST",{"v":200000,"d":"R$ 200,000.00"},{"v":2537832.140000001,"d":"R$ 2,537,832.14"}]
["2020-08-03","REC. REM. DEP. BANC. AUX. FINANCEIRO LEI 173/20 COVID","01 - TESOURO","312 - RECURSOS PARA COMBATE AO CORONAVIRUS","015 - AUX. FINANCEIRO - LEI 173/20 - COVID",{"v":11.37,"d":"R$ 11.37"},{"v":2537843.510000001,"d":"R$ 2,537,843.51"}]
["2020-08-11","ENFRENTAMENTO CORONAVIRUS - R. FEDERAL","05 - TRANSFERÊNCIAS E CONVÊNIOS FEDERAIS-VINCULADOS","312 - RECURSOS PARA COMBATE AO CORONAVIRUS","001 - ENFRENT. CORONAVIRUS - R. FEDERAL - SAUD",{"v":450000,"d":"R$ 450,000.00"},{"$f":"G57+F58","v":{"v":2987843.510000001,"d":"R$ 2,987,843.51"}}]
["2020-08-12","FPM - AUX. FINANCEIRO - LEI 173/20 - COVID","05 - TRANSFERÊNCIAS E CONVÊNIOS FEDERAIS-VINCULADOS","312 - RECURSOS PARA COMBATE AO CORONAVIRUS","015 - AUX. FINANCEIRO - LEI 173/20 - COVID",{"v":187880.32,"d":"R$ 187,880.32"},{"v":3175723.830000001,"d":"R$ 3,175,723.83"}]
["2020-08-13","ENFRENTAMENTO CORONAVIRUS - R. FEDERAL","05 - TRANSFERÊNCIAS E CONVÊNIOS FEDERAIS-VINCULADOS","312 - RECURSOS PARA COMBATE AO CORONAVIRUS","001 - ENFRENT. CORONAVIRUS - R. FEDERAL - SAUD",{"v":691637.01,"d":"R$ 691,637.01"},{"v":3867360.840000001,"d":"R$ 3,867,360.84"}]
["2020-08-13","PORTARIA Nº 1857 PROGRAMA SAÚDE NA ESCOLA - COVID - REC FED","05 - TRANSFERÊNCIAS E CONVÊNIOS FEDERAIS-VINCULADOS","312 - RECURSOS PARA COMBATE AO CORONAVIRUS","018 - PORT1857 SAÚDE NA ESCOLA - COVID - R.FED",{"v":90640,"d":"R$ 90,640.00"},{"v":3958000.840000001,"d":"R$ 3,958,000.84"}]
["2020-08-19","MULTA FISCALIZAÇÃO COMÉRCIO - DECRETO 1261/20 - PRINCIPAL","01 - TESOURO","312 - RECURSOS PARA COMBATE AO CORONAVIRUS","014 - MULTA FISCALIZ. COMÉRCIO - DEC. 1261/20",{"v":552.2,"d":"R$ 552.20"},{"$f":"G61+F62","v":{"v":3958553.040000001,"d":"R$ 3,958,553.04"}}]
["2020-08-20","MULTA FISCALIZAÇÃO COMÉRCIO - DECRETO 1261/20 - PRINCIPAL","01 - TESOURO","312 - RECURSOS PARA COMBATE AO CORONAVIRUS","014 - MULTA FISCALIZ. COMÉRCIO - DEC. 1261/20",{"v":552.2,"d":"R$ 552.20"},{"v":3959105.240000001,"d":"R$ 3,959,105.24"}]
["2020-08-25","INCREM. TEMP. BL. PROT. S. ESPEC. COVID","05 - TRANSFERÊNCIAS E CONVÊNIOS FEDERAIS-VINCULADOS","312 - RECURSOS PARA COMBATE AO CORONAVIRUS","011 - INCREM. TEMP. BL. PROT. S. ESPEC. COVID",{"v":19120,"d":"R$ 19,120.00"},{"$f":"G63+F64","v":{"v":3978225.240000001,"d":"R$ 3,978,225.24"}}]
["2020-08-25","INCREM. TEMP. BL. PROT. S. BASICA. COVID","05 - TRANSFERÊNCIAS E CONVÊNIOS FEDERAIS-VINCULADOS","312 - RECURSOS PARA COMBATE AO CORONAVIRUS","012 - INCREM. TEMP. BL. PROT. S. BASICA. COVID",{"v":29450,"d":"R$ 29,450.00"},{"v":4007675.240000001,"d":"R$ 4,007,675.24"}]
["2020-08-28","MULTA FISCALIZAÇÃO COMÉRCIO - DECRETO 1261/20 - PRINCIPAL","01 - TESOURO","312 - RECURSOS PARA COMBATE AO CORONAVIRUS","014 - MULTA FISCALIZ. COMÉRCIO - DEC. 1261/20",{"v":552.2,"d":"R$ 552.20"},{"v":4008227.4400000013,"d":"R$ 4,008,227.44"}]
["2020-08-31","Receita Desc. Emp. 8387/1/OR","01 - TESOURO","312 - RECURSOS PARA COMBATE AO CORONAVIRUS","008 - RED. SAL. CARGOS COMISSÃO - DEC. 1242/20",{"v":1085.76,"d":"R$ 1,085.76"},{"$f":"G66+F67","v":{"v":4009313.200000001,"d":"R$ 4,009,313.20"}}]
["2020-08-31","REM. DEP. BANC. - AÇÕES COVID SUAS EPI - P. 369","05 - TRANSFERÊNCIAS E CONVÊNIOS FEDERAIS-VINCULADOS","312 - RECURSOS PARA COMBATE AO CORONAVIRUS","005 - AÇÕES COVID SUAS-EPI- PORT. 369 - R.FED",{"v":1.14,"d":"R$ 1.14"},{"v":4009314.3400000012,"d":"R$ 4,009,314.34"}]
["2020-08-31","REC. REM. DEP. BANC. AUX. FINANCEIRO LEI 173/20 COVID","01 - TESOURO","312 - RECURSOS PARA COMBATE AO CORONAVIRUS","015 - AUX. FINANCEIRO - LEI 173/20 - COVID",{"v":32.85,"d":"R$ 32.85"},{"v":4009347.1900000013,"d":"R$ 4,009,347.19"}]
["2020-08-31","REM. DEP. BANC. - AÇÕES COVID SUAS ALIMENTOS - P. 369","05 - TRANSFERÊNCIAS E CONVÊNIOS FEDERAIS-VINCULADOS","312 - RECURSOS PARA COMBATE AO CORONAVIRUS","006 - AÇÕES COVID SUAS-ALIM.-PORT. 369 - R.FED",{"v":16.75,"d":"R$ 16.75"},{"v":4009363.9400000013,"d":"R$ 4,009,363.94"}]
["2020-08-31","REM. DEP. BANC. - AÇÕES COVID SUAS ACOLHIMENTO - P. 369","05 - TRANSFERÊNCIAS E CONVÊNIOS FEDERAIS-VINCULADOS","312 - RECURSOS PARA COMBATE AO CORONAVIRUS","007 - AÇÕES COVID SUAS-ACOL.-PORT. 369 - R.FED",{"v":33.05,"d":"R$ 33.05"},{"v":4009396.990000001,"d":"R$ 4,009,396.99"}]
["2020-09-11","FPM - AUX. FINANCEIRO - LEI 173/20 - COVID","05 - TRANSFERÊNCIAS E CONVÊNIOS FEDERAIS-VINCULADOS","312 - RECURSOS PARA COMBATE AO CORONAVIRUS","015 - AUX. FINANCEIRO - LEI 173/20 - COVID",{"v":188017,"d":"R$ 188,017.00"},{"$f":"G71+F72","v":{"v":4197413.990000001,"d":"R$ 4,197,413.99"}}]
["2020-09-14","MULTA FISCALIZAÇÃO COMÉRCIO - DECRETO 1261/20 - PRINCIPAL","01 - TESOURO","312 - RECURSOS PARA COMBATE AO CORONAVIRUS","014 - MULTA FISCALIZ. COMÉRCIO - DEC. 1261/20",{"v":552.2,"d":"R$ 552.20"},{"$f":"G72+F73","v":{"v":4197966.190000001,"d":"R$ 4,197,966.19"}}]
["2020-09-14","MULTA FISCALIZAÇÃO COMÉRCIO - DECRETO 1261/20 - PRINCIPAL","01 - TESOURO","312 - RECURSOS PARA COMBATE AO CORONAVIRUS","014 - MULTA FISCALIZ. COMÉRCIO - DEC. 1261/20",{"v":1093.58,"d":"R$ 1,093.58"},{"v":4199059.770000001,"d":"R$ 4,199,059.77"}]
["2020-09-22","REST. REND. APLIC. DE REPASSE COVID SANTA CASA P.A.1569/2020","05 - TRANSFERÊNCIAS E CONVÊNIOS FEDERAIS-VINCULADOS","312 - RECURSOS PARA COMBATE AO CORONAVIRUS","015 - AUX. FINANCEIRO - LEI 173/20 - COVID",{"v":0.8,"d":"R$ 0.80"},{"v":4199060.570000001,"d":"R$ 4,199,060.57"}]
["2020-09-29","MULTA FISCALIZAÇÃO COMÉRCIO - DECRETO 1261/20 - PRINCIPAL","01 - TESOURO","312 - RECURSOS PARA COMBATE AO CORONAVIRUS","014 - MULTA FISCALIZ. COMÉRCIO - DEC. 1261/20",{"v":552.2,"d":"R$ 552.20"},{"$f":"G75+F76","v":{"v":4199612.770000001,"d":"R$ 4,199,612.77"}}]
["2020-09-29","MULTA FISCALIZAÇÃO COMÉRCIO - DECRETO 1261/20 - PRINCIPAL","01 - TESOURO","312 - RECURSOS PARA COMBATE AO CORONAVIRUS","014 - MULTA FISCALIZ. COMÉRCIO - DEC. 1261/20",{"v":552.2,"d":"R$ 552.20"},{"v":4200164.970000002,"d":"R$ 4,200,164.97"}]
["2020-09-30","ENFRENTAMENTO CORONAVIRUS - R. FEDERAL","05 - TRANSFERÊNCIAS E CONVÊNIOS FEDERAIS-VINCULADOS","312 - RECURSOS PARA COMBATE AO CORONAVIRUS","001 - ENFRENT. CORONAVIRUS - R. FEDERAL - SAUD",{"v":7280,"d":"R$ 7,280.00"},{"v":4207444.970000002,"d":"R$ 4,207,444.97"}]
["2020-09-30","REM. DEP. BANC. - AÇÕES COVID SUAS EPI - P. 369","05 - TRANSFERÊNCIAS E CONVÊNIOS FEDERAIS-VINCULADOS","312 - RECURSOS PARA COMBATE AO CORONAVIRUS","005 - AÇÕES COVID SUAS-EPI- PORT. 369 - R.FED",{"v":0.61,"d":"R$ 0.61"},{"v":4207445.580000002,"d":"R$ 4,207,445.58"}]
["2020-09-30","REC. REM. DEP. BANC. AUX. FINANCEIRO LEI 173/20 COVID","01 - TESOURO","312 - RECURSOS PARA COMBATE AO CORONAVIRUS","015 - AUX. FINANCEIRO - LEI 173/20 - COVID",{"v":24.48,"d":"R$ 24.48"},{"v":4207470.060000002,"d":"R$ 4,207,470.06"}]
["2020-09-30","REM. DEP. BANC. - AÇÕES COVID SUAS ALIMENTOS - P. 369","05 - TRANSFERÊNCIAS E CONVÊNIOS FEDERAIS-VINCULADOS","312 - RECURSOS PARA COMBATE AO CORONAVIRUS","006 - AÇÕES COVID SUAS-ALIM.-PORT. 369 - R.FED",{"v":9.59,"d":"R$ 9.59"},{"v":4207479.650000002,"d":"R$ 4,207,479.65"}]
["2020-09-30","REM. DEP. BANC. - AÇÕES COVID SUAS ACOLHIMENTO - P. 369","05 - TRANSFERÊNCIAS E CONVÊNIOS FEDERAIS-VINCULADOS","312 - RECURSOS PARA COMBATE AO CORONAVIRUS","007 - AÇÕES COVID SUAS-ACOL.-PORT. 369 - R.FED",{"v":9.62,"d":"R$ 9.62"},{"v":4207489.270000002,"d":"R$ 4,207,489.27"}]
["2020-10-01","ENFRENTAMENTO CORONAVIRUS - R. FEDERAL","05 - TRANSFERÊNCIAS E CONVÊNIOS FEDERAIS-VINCULADOS","312 - RECURSOS PARA COMBATE AO CORONAVIRUS","001 - ENFRENT. CORONAVIRUS - R. FEDERAL - SAUD",{"v":160096.14,"d":"R$ 160,096.14"},{"v":4367585.410000002,"d":"R$ 4,367,585.41"}]
["2020-10-20","MULTA FISCALIZAÇÃO COMÉRCIO - DECRETO 1261/20 - PRINCIPAL","01 - TESOURO","312 - RECURSOS PARA COMBATE AO CORONAVIRUS","014 - MULTA FISCALIZ. COMÉRCIO - DEC. 1261/20",{"v":552.2,"d":"R$ 552.20"},{"$f":"G83+F84","v":{"v":4368137.610000002,"d":"R$ 4,368,137.61"}}]
["2020-10-26","MULTA FISCALIZAÇÃO COMÉRCIO - DECRETO 1261/20 - PRINCIPAL","01 - TESOURO","312 - RECURSOS PARA COMBATE AO CORONAVIRUS","014 - MULTA FISCALIZ. COMÉRCIO - DEC. 1261/20",{"v":10.82,"d":"R$ 10.82"},{"$f":"G84+F85","v":{"v":4368148.4300000025,"d":"R$ 4,368,148.43"}}]
["2020-10-29","PORTARIA 2358 ENFRENTAMENTO EMERGENCIAL SAUDE COVID - R. FED","05 - TRANSFERÊNCIAS E CONVÊNIOS FEDERAIS-VINCULADOS","312 - RECURSOS PARA COMBATE AO CORONAVIRUS","020 - PORT 2358 ENFR EMERG SAUDE COVID - R FED",{"v":78000,"d":"R$ 78,000.00"},{"v":4446148.4300000025,"d":"R$ 4,446,148.43"}]
["2020-10-29","PORTARIA 2405 ENFRENTAMENTO EMERGENCIAL SAUDE COVID - R. FED","05 - TRANSFERÊNCIAS E CONVÊNIOS FEDERAIS-VINCULADOS","312 - RECURSOS PARA COMBATE AO CORONAVIRUS","021 - PORT 2405 ENFR EMERG SAUDE COVID - R FED",{"v":66400,"d":"R$ 66,400.00"},{"v":4512548.4300000025,"d":"R$ 4,512,548.43"}]
["2020-10-29","PORTARIA 2222 ENFRENTAMENTO EMERGENCIAL SAUDE COVID - R. FED","05 - TRANSFERÊNCIAS E CONVÊNIOS FEDERAIS-VINCULADOS","312 - RECURSOS PARA COMBATE AO CORONAVIRUS","019 - PORT 2222 ENFR EMERG SAUDE COVID - R FED",{"v":150,"d":"R$ 150.00"},{"v":4512698.4300000025,"d":"R$ 4,512,698.43"}]
["2020-10-29","PORTARIA 2222 ENFRENTAMENTO EMERGENCIAL SAUDE COVID - R. FED","05 - TRANSFERÊNCIAS E CONVÊNIOS FEDERAIS-VINCULADOS","312 - RECURSOS PARA COMBATE AO CORONAVIRUS","019 - PORT 2222 ENFR EMERG SAUDE COVID - R FED",{"v":19200,"d":"R$ 19,200.00"},{"v":4531898.4300000025,"d":"R$ 4,531,898.43"}]
["2020-10-30","INCREM.CUST.-P.728 - EMENDA PAR.- R.FED- Alter. fich. 423 p/ 476-correç. do grup.¨08 p/ 05¨- cod.apl.312 P/800","05 - TRANSFERÊNCIAS E CONVÊNIOS FEDERAIS-VINCULADOS","800 - TRANSF.UNIÃO EMENDAS PARLAM.INDIVIDUAIS","009 - INCREM.CUST.-P.728 - EMENDA PAR.- R.FED",{"v":150000,"d":"R$ 150,000.00"},{"$f":"G89+F90","v":{"v":4681898.4300000025,"d":"R$ 4,681,898.43"}}]
["2020-10-30","REM. DEP. BANC. - AÇÕES COVID SUAS EPI - P. 369","05 - TRANSFERÊNCIAS E CONVÊNIOS FEDERAIS-VINCULADOS","312 - RECURSOS PARA COMBATE AO CORONAVIRUS","005 - AÇÕES COVID SUAS-EPI- PORT. 369 - R.FED",{"v":0.76,"d":"R$ 0.76"},{"$f":"G90+F91","v":{"v":4681899.190000002,"d":"R$ 4,681,899.19"}}]
["2020-10-30","REC. REM. DEP. BANC. AUX. FINANCEIRO LEI 173/20 COVID","01 - TESOURO","312 - RECURSOS PARA COMBATE AO CORONAVIRUS","015 - AUX. FINANCEIRO - LEI 173/20 - COVID",{"v":27.65,"d":"R$ 27.65"},{"v":4681926.840000003,"d":"R$ 4,681,926.84"}]
["2020-10-30","REM. DEP. BANC. - AÇÕES COVID SUAS ALIMENTOS - P. 369","05 - TRANSFERÊNCIAS E CONVÊNIOS FEDERAIS-VINCULADOS","312 - RECURSOS PARA COMBATE AO CORONAVIRUS","006 - AÇÕES COVID SUAS-ALIM.-PORT. 369 - R.FED",{"v":6.3,"d":"R$ 6.30"},{"v":4681933.140000002,"d":"R$ 4,681,933.14"}]
["2020-10-30","REM. DEP. BANC. - AÇÕES COVID SUAS ACOLHIMENTO - P. 369","05 - TRANSFERÊNCIAS E CONVÊNIOS FEDERAIS-VINCULADOS","312 - RECURSOS PARA COMBATE AO CORONAVIRUS","007 - AÇÕES COVID SUAS-ACOL.-PORT. 369 - R.FED",{"v":2.37,"d":"R$ 2.37"},{"v":4681935.510000003,"d":"R$ 4,681,935.51"}]
["2020-10-30","INCR. TEMP. CUSTEIO - P.728 - EMEN. PAR. - R. FED- Alter. fich. 423 p/ 476-correç. do grup.¨08 p/ 05¨- cod.apl.312 P/800","08 - EMENDAS PARLAMENTARES INDIVIDUAIS","312 - RECURSOS PARA COMBATE AO CORONAVIRUS","009 - INCREM.CUST.-P.728 - EMENDA PAR.- R.FED",{"v":-150000,"d":"-R$ 150,000.00"},{"v":4531935.510000003,"d":"R$ 4,531,935.51"}]